bitfinex/quotes_BTCUSD_20251207
["timestamp","ask_amount","ask_price","bid_price","bid_amount"]
[1765140741837,0.22955837,91480.0,91479.0,0.001]
[1765140742442,0.22955837,91480.0,91479.0,0.04012]
[1765140742645,0.22955837,91480.0,91479.0,0.06961056]
[1765140742868,0.22955837,91480.0,91479.0,0.04012]
[1765140743052,0.22955837,91480.0,91479.0,0.01684]
[1765140743459,0.22955837,91480.0,91479.0,0.03047149]
[1765140744237,0.22955837,91480.0,91479.0,0.001]
[1765140744928,0.22955837,91480.0,91479.0,0.03047149]
[1765140745132,0.22955837,91480.0,91479.0,0.001]
[1765140745597,0.24456837,91480.0,91479.0,0.001]
[1765140748177,0.22955837,91480.0,91479.0,0.001]
[1765140750421,0.24456837,91480.0,91479.0,0.001]
[1765140750624,0.26794837,91480.0,91479.0,0.001]
[1765140751580,0.29015235,91480.0,91479.0,0.001]
[1765140752145,0.29015235,91480.0,91474.0,0.00039448]
[1765140752146,0.21863897,91475.0,91474.0,0.00039448]
[1765140752339,0.23587897,91475.0,91474.0,0.00039448]
[1765140753706,0.23887897,91475.0,91474.0,0.00039448]
[1765140754966,0.23987897,91475.0,91474.0,0.00039448]
[1765140757740,0.25110897,91475.0,91474.0,0.00039448]
[1765140759496,0.31170295,91475.0,91474.0,0.00039448]
[1765140761275,0.28949897,91475.0,91474.0,0.00039448]
[1765140762673,0.31170295,91475.0,91474.0,0.00039448]
[1765140763495,0.28949897,91475.0,91474.0,0.00039448]
[1765140764612,0.26611897,91475.0,91474.0,0.00039448]
[1765140766151,0.28982897,91475.0,91474.0,0.00039448]
[1765140766361,0.41283143,91475.0,91474.0,0.00039448]
[1765140766566,0.41283143,91475.0,91474.0,1e-08]
[1765140766775,0.77890477,91475.0,91474.0,1e-08]
[1765140767538,0.77590477,91475.0,91474.0,1e-08]
[1765140767879,0.78190477,91475.0,91474.0,1e-08]
[1765140769576,0.78390477,91475.0,91474.0,1e-08]
[1765140770285,0.78389405,91475.0,91474.0,1e-08]
[1765140779957,0.78389405,91475.0,91449.0,0.00221488]
[1765140779958,0.54169874,91450.0,91449.0,0.00221488]
[1765140780135,0.61390395,91450.0,91449.0,0.00221488]
[1765140780341,0.63668395,91450.0,91449.0,1e-08]
[1765140780534,0.67637995,91450.0,91449.0,1e-08]
[1765140780736,0.78608501,91450.0,91449.0,1e-08]
[1765140781498,0.80508501,91450.0,91449.0,1e-08]
[1765140782031,0.81008501,91450.0,91449.0,1e-08]
[1765140782472,0.80508501,91450.0,91449.0,1e-08]
[1765140782874,0.21876811,91421.0,91420.0,0.0004]
[1765140783038,0.25173811,91421.0,91420.0,0.0004]
[1765140783233,0.27451811,91421.0,91420.0,0.00124904]
[1765140783643,0.25173811,91421.0,91420.0,0.00124904]
[1765140784052,0.25173811,91421.0,91420.0,0.00924904]
[1765140785096,0.25173811,91421.0,91420.0,0.01124904]
[1765140787788,0.23600811,91421.0,91420.0,0.01124904]
[1765140788998,0.27613098,91421.0,91420.0,0.01124904]
[1765140789661,0.27613098,91421.0,91420.0,0.00924904]
[1765140789867,0.27613098,91421.0,91420.0,0.00124904]
[1765140790069,0.27613098,91421.0,91420.0,0.00924904]
[1765140790273,0.25335098,91421.0,91420.0,0.00924904]
[1765140790479,0.23762098,91421.0,91420.0,0.00924904]
[1765140792192,0.23600811,91421.0,91420.0,0.04868904]
[1765140792401,0.21876811,91421.0,91420.0,0.04868904]
[1765140792803,0.01093816,91423.0,91422.0,0.02220398]
[1765140793063,0.01093816,91423.0,91422.0,0.06164398]
[1765140793064,0.22970149,91423.0,91422.0,0.06164398]
[1765140793406,0.01093816,91423.0,91422.0,0.06164398]
[1765140794247,0.01093816,91423.0,91422.0,0.07564398]
[1765140795056,0.01093816,91423.0,91422.0,0.07864398]
[1765140795730,0.21875367,91428.0,91427.0,0.02220398]
[1765140795731,0.01093756,91428.0,91427.0,0.02220398]
[1765140795951,0.22969096,91428.0,91427.0,0.06164398]
[1765140796317,0.01093756,91428.0,91427.0,0.06164398]
[1765140797121,0.01093756,91428.0,91427.0,0.06364398]
[1765140797321,0.01093756,91428.0,91427.0,0.04644]
[1765140799869,0.01093756,91428.0,91427.0,0.02276]
[1765140800109,0.01093756,91428.0,91427.0,0.00711828]
[1765140802952,0.01093756,91428.0,91427.0,0.00211828]
[1765140803096,0.01093756,91428.0,91427.0,0.00311828]
[1765140803309,0.01093756,91428.0,91427.0,0.00111828]
[1765140805079,0.01093756,91428.0,91427.0,0.04055828]
[1765140805289,0.01093756,91428.0,91427.0,0.06276226]
[1765140805426,0.01093756,91428.0,91427.0,0.06340631]
[1765140813933,0.01093756,91428.0,91427.0,0.04120233]
[1765140815811,0.01093756,91428.0,91427.0,0.01752233]
[1765140816037,0.01093756,91428.0,91427.0,0.00176233]
[1765140817812,0.01093756,91428.0,91427.0,0.01752233]
[1765140818035,0.01093756,91428.0,91427.0,0.04120233]
[1765140818813,0.22968138,91431.0,91430.0,0.02220398]
[1765140819200,0.22968138,91431.0,91430.0,0.06164398]
[1765140821355,0.22968138,91431.0,91430.0,0.06564398]
[1765140821651,0.22968138,91431.0,91430.0,0.06664398]
[1765140822197,0.22968138,91431.0,91430.0,0.04444]
[1765140824021,0.22968138,91431.0,91430.0,0.005]
[1765140824189,0.22968138,91431.0,91430.0,0.0055562]
[1765140824539,0.24480138,91431.0,91430.0,0.0055562]
[1765140824942,0.24480138,91431.0,91430.0,0.0045562]
[1765140825143,0.27047425,91431.0,91430.0,0.0045562]
[1765140825355,0.27047425,91431.0,91430.0,0.0055562]
[1765140825599,0.29267823,91431.0,91430.0,0.0055562]
[1765140825801,0.29267823,91431.0,91430.0,0.0045562]
[1765140825802,0.27047425,91431.0,91430.0,0.0045562]
[1765140826021,0.27047425,91431.0,91430.0,0.0005562]
[1765140826378,0.29267823,91431.0,91430.0,0.0025562]
[1765140826599,0.29267823,91431.0,91430.0,0.0005562]
[1765140827002,0.29567823,91431.0,91430.0,0.0005562]
[1765140827201,0.29567823,91431.0,91430.0,0.0393762]
[1765140827202,0.23429425,91431.0,91430.0,0.0393762]
[1765140827402,0.25153425,91431.0,91430.0,0.0393762]
[1765140827623,0.25092138,91431.0,91430.0,0.0393762]
[1765140828027,0.24992138,91431.0,91430.0,0.0393762]
[1765140829053,0.22968138,91431.0,91430.0,0.0393762]
[1765140829227,0.22968138,91431.0,91430.0,0.0403762]
[1765140829411,0.22968138,91431.0,91430.0,0.0413762]
[1765140829770,0.22968138,91431.0,91430.0,0.0403762]
[1765140829995,0.22968138,91431.0,91430.0,0.0443762]
[1765140832809,0.22968138,91431.0,91430.0,0.0209862]
[1765140833010,0.22968138,91431.0,91430.0,0.0055562]
[1765140834053,0.22968138,91431.0,91430.0,0.03503931]
[1765140834445,0.22968138,91431.0,91430.0,0.07385931]
[1765140836483,0.22968138,91431.0,91430.0,0.0443762]
[1765140837501,0.22968138,91431.0,91430.0,0.07385733]
[1765140838511,0.22968138,91431.0,91430.0,0.0443762]
[1765140840150,0.22967429,91434.0,91433.0,0.02220398]
[1765140840305,0.22967429,91434.0,91433.0,0.03755398]
[1765140840507,0.22967429,91434.0,91433.0,0.06074398]
[1765140841124,0.22967429,91434.0,91433.0,0.03854]
[1765140842185,0.22967429,91434.0,91433.0,0.04154]
[1765140842340,0.22967429,91434.0,91433.0,0.04254]
[1765140844023,0.22967429,91434.0,91433.0,0.07200937]
[1765140844428,0.01093685,91434.0,91433.0,0.07200937]
[1765140844740,0.01093685,91434.0,91433.0,0.04254]
[1765140845692,0.01093685,91434.0,91433.0,0.04300837]
[1765140849440,0.01093673,91435.0,91433.0,0.04300837]
[1765140849628,0.01093673,91435.0,91434.0,0.03854]
[1765140850255,0.02415,91458.0,91434.0,0.03854]
[1765140850256,0.01093565,91444.0,91437.0,0.03314047]
[1765140850486,0.22965376,91442.0,91441.0,0.02944834]
[1765140850945,0.22965376,91442.0,91441.0,0.06798834]
[1765140851428,0.22965376,91442.0,91441.0,0.0682225]
[1765140852215,0.23065376,91442.0,91441.0,0.0682225]
[1765140852424,0.22965376,91442.0,91441.0,0.0682225]
[1765140853616,0.22965376,91442.0,91441.0,0.03877416]
[1765140853822,0.22965376,91442.0,91441.0,0.06820756]
[1765140854418,0.01093589,91442.0,91441.0,0.06820756]
[1765140855048,0.22965376,91442.0,91441.0,0.06820756]
[1765140855297,0.22965376,91442.0,91441.0,0.03877416]
[1765140856143,0.01093577,91443.0,91441.0,0.06820756]
[1765140856343,0.01093577,91443.0,91442.0,0.03988]
[1765140857234,0.01093577,91443.0,91442.0,0.0693134]
[1765140858073,0.22964928,91444.0,91442.0,0.0693134]
[1765140858074,0.01093541,91446.0,91445.0,0.02220398]
[1765140858352,0.01093541,91446.0,91445.0,0.04582398]
[1765140858498,0.01093541,91446.0,91445.0,0.06208398]
[1765140858698,0.01093541,91446.0,91445.0,0.03988]
[1765140858945,0.01093541,91446.0,91445.0,0.06208398]
[1765140859159,0.01093529,91447.0,91445.0,0.09151738]
[1765140859333,0.003,91446.0,91445.0,0.02220398]
[1765140859519,0.003,91446.0,91445.0,0.24091468]
[1765140859881,0.003,91446.0,91445.0,0.28079468]
[1765140860841,0.003,91446.0,91445.0,0.06208398]
[1765140861051,0.01093517,91448.0,91445.0,0.06208398]
[1765140861277,0.01093517,91448.0,91447.0,0.0278]
[1765140861711,0.01093517,91448.0,91447.0,0.05142]
[1765140862213,0.01390533,91450.0,91447.0,0.05142]
[1765140862373,0.01390533,91450.0,91449.0,0.01626]
[1765140862570,0.01390533,91450.0,91449.0,0.03988]
[1765140864880,0.01390533,91450.0,91449.0,0.04388]
[1765140865081,0.01390533,91450.0,91449.0,0.04488]
[1765140867236,0.0029704,91450.0,91449.0,0.04488]
[1765140867612,0.0029704,91450.0,91449.0,0.07430902]
[1765140868560,0.0029704,91450.0,91449.0,0.08886004]
[1765140868716,0.0029704,91450.0,91449.0,0.04488]
[1765140868921,0.0029704,91450.0,91449.0,0.41822874]
[1765140869154,0.0029704,91450.0,91449.0,0.40354798]
[1765140869917,0.0029704,91450.0,91449.0,0.7853289]
[1765140870329,0.0029704,91450.0,91449.0,0.72654798]
[1765140870668,0.0029704,91450.0,91449.0,0.7853289]
[1765140871418,0.0029704,91450.0,91449.0,0.72654798]
[1765140872358,0.0029704,91450.0,91449.0,0.7853232]
[1765140875105,0.0029704,91450.0,91449.0,0.72654798]
[1765140876163,0.0029704,91450.0,91449.0,0.7853232]
[1765140876734,0.0029704,91450.0,91449.0,0.72637798]
[1765140876862,0.0029704,91450.0,91449.0,0.576118]
[1765140877270,0.0029704,91450.0,91449.0,0.59832198]
[1765140877676,0.0029704,91450.0,91449.0,0.6570972]
[1765140880036,0.0029704,91450.0,91449.0,0.66084497]
[1765140881061,0.0029704,91450.0,91449.0,0.65684497]
[1765140881463,0.0029704,91450.0,91449.0,0.66284497]
[1765140881920,0.0029704,91450.0,91449.0,0.66484497]
[1765140894065,0.0029704,91450.0,91449.0,0.58141297]
[1765140894788,0.0029704,91450.0,91449.0,0.45147299]
[1765140894995,0.22166914,91450.0,91449.0,0.04871]
[1765140895171,0.22166914,91450.0,91449.0,0.08793793]
[1765140895347,0.22166914,91450.0,91449.0,0.04871]
[1765140895548,0.22166914,91450.0,91449.0,0.02509]
[1765140895759,0.22166914,91450.0,91449.0,0.03843122]
[1765140896212,0.22166914,91450.0,91449.0,0.009]
[1765140896413,0.22166914,91450.0,91449.0,0.002]
[1765140896610,0.19682352,91448.0,91447.0,0.05088]
[1765140898219,0.19682352,91448.0,91447.0,0.05188]
[1765140898380,0.23260429,91450.0,91447.0,0.05188]
[1765140898732,0.0029704,91450.0,91449.0,0.03800398]
[1765140899288,0.0029704,91450.0,91449.0,0.06154398]
[1765140900278,0.0039704,91450.0,91449.0,0.09097464]
[1765140900896,0.0039704,91450.0,91449.0,0.09197464]
[1765140901502,0.0039704,91450.0,91449.0,0.06977066]
[1765140903251,0.0039704,91450.0,91449.0,0.04034]
[1765140904300,0.0039704,91450.0,91449.0,0.0168]
[1765140905308,0.0039704,91450.0,91449.0,0.04034]
[1765140910209,0.0039704,91450.0,91449.0,0.0168]
[1765140912114,0.00558327,91450.0,91449.0,0.001]
[1765140915735,0.00558327,91450.0,91449.0,0.04105]
[1765140916815,0.0039704,91450.0,91449.0,0.04105]
[1765140917052,0.0039704,91450.0,91449.0,0.06325398]
[1765140917866,0.0039704,91450.0,91449.0,0.09268464]
[1765140918211,0.0039704,91450.0,91449.0,0.06325398]
[1765140918934,0.0039704,91450.0,91449.0,0.001]
[1765140918935,0.22266914,91450.0,91449.0,0.001]
[1765140919135,0.0039704,91450.0,91449.0,0.04105]
[1765140919455,0.0039704,91450.0,91449.0,0.09267056]
[1765140920288,0.0039704,91450.0,91449.0,0.06325398]
[1765140922180,0.0039704,91450.0,91449.0,1.86382464]
[1765140922389,0.0039704,91450.0,91449.0,1.80487897]
[1765140922591,0.0039704,91450.0,91449.0,1.76506597]
[1765140923076,0.0039704,91450.0,91449.0,1.71852097]
[1765140923569,0.0029704,91450.0,91449.0,1.71852097]
[1765140923773,0.0029704,91450.0,91449.0,1.72252097]
[1765140923975,0.0029704,91450.0,91449.0,1.41848897]
[1765140924405,0.0029704,91450.0,91449.0,1.30258597]
[1765140925165,0.0029704,91450.0,91449.0,0.93721697]
[1765140925364,0.0029704,91450.0,91449.0,0.87469398]
[1765140926656,0.0029704,91450.0,91449.0,1.09339511]
[1765140928898,0.0029704,91450.0,91449.0,1.1559181]
[1765140929916,0.0029704,91450.0,91449.0,0.8266301]
[1765140933489,0.0029704,91450.0,91449.0,0.8438701]
[1765140949756,0.0029704,91450.0,91449.0,0.7897181]
[1765140950021,0.0029704,91450.0,91449.0,0.9478911]
[1765140950202,0.0029704,91450.0,91449.0,0.86809266]
[1765140950410,0.0029704,91450.0,91449.0,0.96944066]
[1765140950601,0.0029704,91450.0,91449.0,0.86809266]
[1765140951202,0.0029704,91450.0,91449.0,0.8910531]
[1765140952918,0.0029704,91450.0,91449.0,0.7897181]
[1765140953125,0.0029704,91450.0,91449.0,0.8933501]
[1765140954522,0.21863851,91476.0,91469.0,0.02220398]
[1765140954523,0.01093254,91470.0,91469.0,0.02220398]
[1765140954734,0.01093254,91470.0,91469.0,0.03930907]
[1765140954928,0.01093254,91470.0,91469.0,0.09184907]
[1765140955779,0.01193254,91470.0,91469.0,0.09196735]
[1765140956197,0.01193254,91470.0,91469.0,0.05265828]
[1765140956926,0.01593254,91470.0,91469.0,0.05265828]
[1765140958482,0.01593254,91470.0,91469.0,0.09196735]
[1765140958994,0.005,91470.0,91469.0,0.09196735]
[1765140961298,0.22365092,91470.0,91469.0,0.09196735]
[1765140962936,0.005,91470.0,91469.0,0.09196735]
[1765140966129,0.00661287,91470.0,91469.0,0.09196735]
[1765140966362,0.00661287,91470.0,91469.0,0.00011828]
[1765140971687,0.04531287,91470.0,91469.0,0.00011828]
[1765140972295,0.00661287,91470.0,91469.0,0.00011828]
[1765140990739,0.04531287,91470.0,91469.0,0.00011828]
[1765140995651,0.0747956,91470.0,91469.0,0.00011828]
[1765140997493,0.0517156,91470.0,91469.0,0.00011828]
[1765141004615,0.0754456,91470.0,91469.0,0.00011828]
[1765141006081,0.0517156,91470.0,91469.0,0.00011828]
[1765141008068,0.0754456,91470.0,91469.0,0.00011828]
[1765141011330,0.0517156,91470.0,91469.0,0.00011828]
[1765141014585,0.0754456,91470.0,91469.0,0.00011828]
[1765141016982,0.0517156,91470.0,91469.0,0.00011828]
[1765141018338,0.0754456,91470.0,91469.0,0.00011828]
[1765141018737,0.0517156,91470.0,91469.0,0.00011828]
[1765141019409,0.0754456,91470.0,91469.0,0.00011828]
[1765141020447,0.0517156,91470.0,91469.0,0.00011828]
[1765141021188,0.0360956,91470.0,91469.0,0.00011828]
[1765141021394,0.0360956,91470.0,91469.0,0.05047828]
[1765141021395,0.00661287,91470.0,91469.0,0.05047828]
[1765141022042,0.005,91470.0,91469.0,0.07268226]
[1765141022694,0.004,91470.0,91469.0,0.07268226]
[1765141022928,0.22958059,91472.0,91469.0,0.07268226]
[1765141023142,0.22958059,91472.0,91471.0,0.01632]
[1765141023558,0.22958059,91472.0,91471.0,0.04098]
[1765141024397,0.22958059,91472.0,91471.0,0.04198]
[1765141025564,0.22958059,91472.0,91471.0,0.04298]
[1765141027134,0.22958059,91472.0,91471.0,0.06486]
[1765141027368,0.22958059,91472.0,91471.0,0.04298]
[1765141029431,0.0109323,91472.0,91471.0,0.07237867]
[1765141029652,0.01093206,91474.0,91471.0,0.07237867]
[1765141029854,0.01093206,91474.0,91473.0,0.01632]
[1765141030555,0.01093206,91474.0,91473.0,0.04098]
[1765141032554,0.01093206,91474.0,91473.0,0.04198]
[1765141039469,0.01093206,91474.0,91473.0,0.01732]
[1765141039656,0.01093206,91474.0,91473.0,0.0418]
[1765141046428,0.01093206,91474.0,91473.0,0.07119867]
[1765141048212,0.22957033,91476.0,91473.0,0.07119867]
[1765141048414,0.22957033,91476.0,91475.0,0.01502]
[1765141048952,0.22957033,91476.0,91475.0,0.0395]
[1765141050481,0.23057033,91476.0,91475.0,0.0395]
[1765141055972,0.01193182,91476.0,91475.0,0.0395]
[1765141056477,0.01193182,91476.0,91475.0,0.06170398]
[1765141057740,0.001,91476.0,91475.0,0.06170398]
[1765141058777,0.2295499,91484.0,91479.0,0.03313545]
[1765141058982,0.2295499,91484.0,91482.0,0.02945931]
[1765141059498,0.01093039,91488.0,91482.0,0.03927908]
[1765141059712,0.01093027,91489.0,91486.0,0.02220398]
[1765141060497,0.22953797,91489.0,91486.0,0.02220398]
[1765141060727,0.22984029,91487.0,91486.0,0.02220398]
[1765141061198,0.01123,91487.0,91486.0,0.02220398]
[1765141061364,0.01123,91487.0,91486.0,0.05163858]
[1765141061559,0.01323,91487.0,91486.0,0.05163858]
[1765141063071,0.01323,91487.0,91486.0,0.21861268]
[1765141063269,0.01323,91487.0,91486.0,0.24081666]
[1765141065928,0.01323,91487.0,91486.0,0.21861268]
[1765141066127,0.01323,91487.0,91486.0,0.24081666]
[1765141066695,0.01123,91487.0,91486.0,0.24081666]
[1765141067243,0.01123,91487.0,91486.0,0.004]
[1765141068026,0.01123,91487.0,91486.0,0.006]
[1765141068525,0.01123,91487.0,91486.0,0.03540148]
[1765141068725,0.01123,91487.0,91486.0,0.006]
[1765141069641,0.01123,91487.0,91486.0,0.02820398]
[1765141071267,0.01123,91487.0,91486.0,0.006]
[1765141071650,0.02644,91487.0,91486.0,0.006]
[1765141072129,0.02644,91487.0,91486.0,0.004]
[1765141072686,0.02644,91487.0,91486.0,0.005]
[1765141072906,0.02644,91487.0,91486.0,0.001]
[1765141073335,0.02644,91487.0,91486.0,0.003]
[1765141077340,0.02644,91487.0,91486.0,0.03240068]
[1765141078464,0.02644,91487.0,91486.0,0.03140068]
[1765141078609,0.02805287,91487.0,91486.0,0.03140068]
[1765141078812,0.02805287,91487.0,91486.0,0.001]
[1765141079245,0.02805287,91487.0,91486.0,0.002]
[1765141079412,0.02805287,91487.0,91486.0,0.001]
[1765141080066,0.21861985,91483.0,91482.0,0.02940068]
[1765141081238,0.21862941,91479.0,91478.0,0.03927908]
[1765141081954,0.21862941,91479.0,91477.0,0.05068908]
[1765141082311,0.21862941,91479.0,91478.0,0.03927908]
[1765141082691,0.21862941,91479.0,91478.0,0.04227908]
[1765141082900,0.21862941,91479.0,91478.0,0.03927908]
[1765141083434,0.21862941,91479.0,91478.0,0.04127908]
[1765141083825,0.21862941,91479.0,91478.0,0.04427908]
[1765141084387,0.21862941,91479.0,91478.0,0.005]
[1765141091457,0.21862941,91479.0,91478.0,0.04427753]
[1765141091892,0.21862941,91479.0,91478.0,0.005]
[1765141092259,0.21862941,91479.0,91478.0,0.003]
[1765141092463,0.21862941,91479.0,91478.0,0.004]
[1765141092765,0.21862941,91479.0,91478.0,0.001]
[1765141095012,0.21862941,91479.0,91478.0,0.03045763]
[1765141095176,0.21862941,91479.0,91478.0,0.02945763]
[1765141095381,0.21862941,91479.0,91477.0,0.04086763]
[1765141095991,0.22062941,91479.0,91477.0,0.04086763]
[1765141096217,0.21862941,91479.0,91477.0,0.04086763]
[1765141096620,0.22062941,91479.0,91477.0,0.04086763]
[1765141098446,0.22062941,91479.0,91477.0,0.01141]
[1765141100722,0.22062941,91479.0,91477.0,0.04086763]
[1765141105585,0.22062941,91479.0,91477.0,0.01141]
[1765141115327,0.22062941,91479.0,91477.0,0.03535]
[1765141116134,0.22062941,91479.0,91478.0,0.03973]
[1765141116457,0.22062941,91479.0,91478.0,0.01579]
[1765141116854,0.21862941,91479.0,91478.0,0.01579]
[1765141117356,0.22062941,91479.0,91478.0,0.01579]
[1765141119220,0.22062941,91479.0,91477.0,0.04086763]
[1765141120018,0.21862941,91479.0,91477.0,0.04086763]
[1765141120228,0.22062941,91479.0,91477.0,0.04086763]
[1765141120629,0.22062941,91479.0,91478.0,0.02945763]
[1765141121375,0.22062941,91479.0,91477.0,0.01141]
[1765141121585,0.21862941,91479.0,91477.0,0.01141]
[1765141121753,0.22062941,91479.0,91477.0,0.01141]
[1765141122155,0.21862941,91479.0,91477.0,0.01141]
[1765141122394,0.22062941,91479.0,91477.0,0.01141]
[1765141126512,0.22062941,91479.0,91478.0,0.01649]
[1765141127679,0.22955889,91480.0,91478.0,0.01649]
[1765141128112,0.22955889,91480.0,91478.0,0.05576753]
[1765141128113,0.002,91479.0,91478.0,0.05576753]
[1765141128806,0.01093135,91480.0,91478.0,0.05576753]
[1765141128978,0.01093135,91480.0,91478.0,0.05676753]
[1765141129180,0.01193135,91480.0,91478.0,0.05676753]
[1765141129380,0.01093135,91480.0,91478.0,0.05576753]
[1765141129817,0.001,91479.0,91478.0,0.05676753]
[1765141130417,0.001,91479.0,91478.0,0.01749]
[1765141130784,0.01093135,91480.0,91478.0,0.01749]
[1765141130981,0.01093135,91480.0,91478.0,0.01649]
[1765141131184,0.01193135,91480.0,91478.0,0.05676753]
[1765141131386,0.01093135,91480.0,91478.0,0.01749]
[1765141131606,0.22955901,91480.0,91478.0,0.01749]
[1765141131812,0.001,91479.0,91478.0,0.01749]
[1765141132047,0.22955901,91480.0,91478.0,0.01749]
[1765141132448,0.01093135,91480.0,91478.0,0.01749]
[1765141132798,0.01093135,91480.0,91478.0,0.01649]
[1765141132998,0.01193135,91480.0,91478.0,0.01649]
[1765141133799,0.001,91480.0,91478.0,0.01649]
[1765141134323,0.001,91480.0,91478.0,0.01749]
[1765141134525,0.001,91480.0,91478.0,0.001]
[1765141134722,0.001,91480.0,91478.0,0.03927753]
[1765141134847,0.001,91480.0,91478.0,0.04027753]
[1765141135517,0.001,91480.0,91478.0,0.001]
[1765141135694,0.001,91480.0,91478.0,0.04027753]
[1765141136315,0.21962709,91480.0,91478.0,0.04027753]
[1765141136605,0.21962709,91480.0,91478.0,0.001]
[1765141137415,0.001,91480.0,91478.0,0.001]
[1765141137946,0.001,91480.0,91479.0,0.08484151]
[1765141138143,0.001,91480.0,91479.0,0.02220398]
[1765141138562,0.001,91480.0,91479.0,0.17531998]
[1765141139111,0.01123,91487.0,91486.0,0.02220398]
[1765141139519,0.02713,91487.0,91486.0,0.02220398]
[1765141139718,0.02713,91487.0,91486.0,0.05502327]
[1765141140724,0.02713,91487.0,91486.0,0.05602327]
[1765141141132,0.02813,91487.0,91486.0,0.05602327]
[1765141141585,0.02813,91487.0,91486.0,0.03381929]
[1765141144392,0.02813,91487.0,91486.0,0.07301836]
[1765141147398,0.02813,91487.0,91486.0,0.03381929]
[1765141152305,0.26959029,91487.0,91486.0,0.03381929]
[1765141154697,0.05098,91487.0,91486.0,0.03381929]
[1765141154902,0.02813,91487.0,91486.0,0.03381929]
[1765141159440,0.02813,91487.0,91486.0,0.07301836]
[1765141159914,0.02813,91487.0,91486.0,0.03381929]
[1765141160330,0.02813,91487.0,91486.0,0.07301836]
[1765141160944,0.02813,91487.0,91486.0,0.03381929]
[1765141161399,0.02813,91487.0,91486.0,0.07301836]
[1765141162371,0.02813,91487.0,91486.0,0.03381929]
[1765141162903,0.02813,91487.0,91486.0,0.0730381]
[1765141163050,0.02813,91487.0,91486.0,0.03381929]
[1765141164133,0.02813,91487.0,91486.0,0.25243197]
[1765141167511,0.05098,91487.0,91486.0,0.3113147]
[1765141168111,0.05098,91487.0,91486.0,0.25243197]
[1765141168739,0.05098,91487.0,91486.0,0.3113415]
[1765141168915,0.05098,91487.0,91486.0,0.25243197]
[1765141169954,0.05098,91487.0,91486.0,0.03381929]
[1765141172136,0.26959029,91487.0,91486.0,0.03381929]
[1765141172538,0.26959029,91487.0,91486.0,0.09273333]
[1765141177114,0.27120316,91487.0,91486.0,0.03381929]
[1765141177891,0.27120316,91487.0,91486.0,0.001]
[1765141178263,0.24835316,91487.0,91486.0,0.001]
[1765141181530,0.24835316,91487.0,91486.0,0.0402863]
[1765141181833,0.24835316,91487.0,91486.0,0.001]
[1765141190472,0.28117776,91487.0,91486.0,0.001]
[1765141191357,0.21862941,91479.0,91474.0,0.0392863]
[1765141191557,0.21862941,91479.0,91478.0,0.02943591]
[1765141192518,0.21862941,91479.0,91476.0,0.02943591]
[1765141192720,0.22162941,91479.0,91477.0,0.04084591]
[1765141192923,0.21862941,91479.0,91477.0,0.04084591]
[1765141193282,0.22162941,91479.0,91477.0,0.01141]
[1765141193482,0.21862941,91479.0,91477.0,0.01141]
[1765141194938,0.22162941,91479.0,91477.0,0.01141]
[1765141200679,0.22162941,91479.0,91477.0,0.03394]
[1765141200991,0.22162941,91479.0,91477.0,0.01141]
[1765141201193,0.003,91479.0,91478.0,0.03907]
[1765141201428,0.003,91479.0,91478.0,0.01654]
[1765141202180,0.2468004,91480.0,91478.0,0.01654]
[1765141202382,0.2186318,91478.0,91477.0,0.04084591]
[1765141202925,0.2186318,91478.0,91477.0,0.01141]
[1765141203847,0.2186318,91478.0,91477.0,0.05126]
[1765141204155,0.2186318,91478.0,91477.0,0.0274]
[1765141204538,0.2216318,91478.0,91477.0,0.0274]
[1765141205351,0.2166818,91478.0,91477.0,0.0274]
[1765141205850,0.2166818,91478.0,91477.0,0.01141]
[1765141205851,0.2117318,91478.0,91477.0,0.01141]
[1765141208636,0.2117318,91478.0,91477.0,0.05126]
[1765141208844,0.2117318,91478.0,91477.0,0.07314]
[1765141209117,0.2117318,91478.0,91477.0,0.05126]
[1765141209811,0.2117318,91478.0,91477.0,0.0274]
[1765141210372,0.2117318,91478.0,91477.0,0.01141]
[1765141217523,0.2117318,91478.0,91477.0,0.02799]
[1765141217725,0.2117318,91478.0,91477.0,0.01141]
[1765141218104,0.58480204,91478.0,91477.0,0.01141]
[1765141218288,0.59504346,91478.0,91477.0,0.01141]
[1765141218486,0.59504346,91478.0,91477.0,0.02799]
[1765141219744,0.59604346,91478.0,91477.0,0.02799]
[1765141220100,0.59204346,91478.0,91477.0,0.02799]
[1765141220522,0.60404346,91478.0,91477.0,0.02899]
[1765141220863,0.60204346,91478.0,91477.0,0.02899]
[1765141221031,0.61604346,91478.0,91477.0,0.02899]
[1765141221652,0.61604346,91478.0,91477.0,0.05157]
[1765141221804,0.61604346,91478.0,91477.0,0.02899]
[1765141223312,0.61604346,91478.0,91469.0,0.00949828]
[1765141223313,0.323,91471.0,91469.0,0.00949828]
[1765141223530,0.5416557,91468.0,91467.0,0.01207]
[1765141223724,0.5416557,91468.0,91467.0,0.02342]
[1765141223725,0.5691204,91468.0,91467.0,0.02342]
[1765141223929,0.6019597,91468.0,91467.0,0.02342]
[1765141224567,0.6159597,91468.0,91467.0,0.02342]
[1765141224822,0.72566476,91468.0,91467.0,0.02342]
[1765141225348,0.71544006,91468.0,91467.0,0.02342]
[1765141225555,0.71544006,91468.0,91467.0,0.03477]
[1765141226475,0.611735,91468.0,91467.0,0.03477]
[1765141228906,0.611735,91468.0,91464.0,0.01131]
[1765141228907,0.54166287,91465.0,91464.0,0.01131]
[1765141229217,0.55187398,91465.0,91464.0,0.01131]
[1765141229642,0.5847159,91465.0,91464.0,0.01131]
[1765141229838,0.69442096,91465.0,91464.0,0.01131]
[1765141230239,0.72142096,91465.0,91464.0,0.01231]
[1765141231506,0.6117159,91465.0,91464.0,0.01231]
[1765141236174,0.60150479,91465.0,91464.0,0.01231]
[1765141236491,0.29574479,91465.0,91464.0,0.01231]
[1765141243718,0.29613885,91465.0,91464.0,0.01231]
[1765141247439,0.30637148,91465.0,91464.0,0.01231]
[1765141248135,0.40265448,91465.0,91464.0,0.01231]
[1765141251289,0.30637148,91465.0,91464.0,0.01231]
[1765141257049,0.34731148,91465.0,91464.0,0.01231]
[1765141257662,0.35967148,91465.0,91464.0,0.001]
[1765141257887,0.33537148,91465.0,91464.0,0.001]
[1765141258302,0.35882148,91465.0,91464.0,0.001]
[1765141260564,0.46852654,91465.0,91464.0,0.001]
[1765141262648,0.33537148,91465.0,91464.0,0.001]
[1765141263758,0.31873148,91465.0,91464.0,0.001]
[1765141264867,0.30149148,91465.0,91464.0,0.001]
[1765141265068,0.30637148,91465.0,91464.0,0.001]
[1765141281782,0.62937148,91465.0,91464.0,0.001]
[1765141282123,0.73907654,91465.0,91464.0,0.001]